Cogmind - Beta 13 @@@ ROGUE MODE // 2024.04.09 @ 05:45:33 Player: Vorpal Result: Self-destructed Performance ------------- Evolutions (1) 500 Regions Visited (5) 1000 Robots Destroyed (52) 260 Value Destroyed (1228) 1228 Prototype IDs (0) 0 Alien Tech Used (0) 0 Bonus (382) 382 TOTAL SCORE: 3370 Bonus ------- High Alert Combat Kills 82 Aligned with FarCom 300 Cogmind --------- Core Integrity 96/400 Matter 300/300 Energy 125/125 System Corruption 0% Temperature Cool (80) Movement Treading (160) Location -8/Mines Parts ------- > --- POWER (2) -------- Light Ion Engine > --- PROPULSION (2) --- Light Treads Light Treads > --- UTILITY (2) ------ Signal Interpreter Medium Armor Plating > --- WEAPON (3) ------- EM Shotgun Particle Cannon Shotgun > --- INVENTORY (5) ---- 0b10 Alert Chip Recoil Stabilizer Field Recycling Unit (0) Latent Energy Streamer Heavy Assault Rifle Peak State ------------ > --- POWER ------------ Light Ion Engine Light Ion Engine > --- PROPULSION ------- Light Treads Light Treads > --- UTILITY ---------- Signal Interpreter Medium Armor Plating > --- WEAPON ----------- EM Shotgun Particle Cannon Shotgun > --- INVENTORY -------- 0b10 Alert Chip Field Recycling Unit Latent Energy Streamer Heavy Assault Rifle [Rating: 15] Favorites ----------- Power Light Ion Engine Engine Light Ion Engine Propulsion Light Treads Treads Light Treads Leg Aluminum Leg Wheel Wheel Flight Unit Flight Unit Utility Signal Interpreter Device Heat Sink Processor Signal Interpreter Protection Core Shielding Weapon Light EM Pulse Cannon Energy Gun EM Pulse Gun Energy Cannon Light EM Pulse Cannon Ballistic Gun Heavy Assault Rifle Build | -11 -10 -9 -9 -9 -8 ------- Run | Yrd Mat Mat Min Exi Min Slots Evolved 2 | . . 2 . . . Power 1 | . . 1 . . . Propulsion . | . . . . . . Utility . | . . . . . . Weapon 1 | . . 1 . . . Parts Attached 47 | 8 12 14 13 . . Power 11 | 1 1 4 5 . . Engine 11 | 1 1 4 5 . . Core . | . . . . . . Reactor . | . . . . . . Propulsion 16 | 4 4 4 4 . . Treads 4 | . . 2 2 . . Leg 6 | 2 2 2 . . . Wheel 2 | 2 . . . . . Hover . | . . . . . . Flight 4 | . 2 . 2 . . Utility 7 | 1 4 1 1 . . Device 2 | 1 1 . . . . Storage . | . . . . . . Processor 2 | . 1 1 . . . Hackware . | . . . . . . Protection 3 | . 2 . 1 . . Artifact . | . . . . . . Weapon 13 | 2 3 5 3 . . Energy Gun 4 | 1 2 . 1 . . Energy Cannon 4 | . . 3 1 . . Ballistic Gun 5 | 1 1 2 1 . . Ballistic Cannon . | . . . . . . Launcher . | . . . . . . Special Weapon . | . . . . . . Impact Weapon . | . . . . . . Slashing Weapon . | . . . . . . Piercing Weapon . | . . . . . . Special Melee Weapon . | . . . . . . Unidentified Prototypes . | . . . . . . Parts Lost 8 | . . 3 4 . 1 Power 4 | . . 1 2 . 1 Propulsion 2 | . . . 2 . . Utility . | . . . . . . Weapon 2 | . . 2 . . . Highest Loss Streak 3 | . . 3 2 . 1 To Critical Strikes . | . . . . . . Average Slot Usage (%) 92 | . 94 93 79 100 98 Engine 17 | . 14 17 20 22 20 Treads 10 | . . 13 6 22 22 Leg 7 | . 17 8 . . . Flight 4 | . 7 . 13 . . Device 2 | . 10 . . . . Processor 9 | . 4 11 11 11 11 Protection 11 | . 12 11 11 11 11 Energy Gun 8 | . 14 5 1 11 11 Energy Cannon 9 | . . 13 11 11 11 Ballistic Gun 10 | . 11 12 3 11 11 Naked Turns . | . . . . . . Heaviest Build 23 | 8 9 17 23 23 23 Greatest Support 40 | 20 20 40 40 40 40 Greatest Overweight (x) 5 | . 1 . 5 . . Average Overweight (x) . | . . . 1 . . Largest Inventory Capacity 5 | 5 5 5 5 5 5 Average Capacity 5 | 5 5 5 5 5 5 Most Carried 5 | 2 5 5 5 4 5 Average Carried 2 | . 1 3 3 3 4 Final Capacity 5 | 5 5 5 5 5 5 Final Carried 5 | 1 2 4 3 4 5 Class Distribution -------------------- 48% | Scavenger-Tank 26% | Scavenger-Mutant 20% | Mutant 3% | Scavenger-Skirmisher Dominant Class ---------------- Mutant | -10/Materials Scavenger-Tank | -9/Materials Scavenger-Mutant | -9/Mines Scavenger-Tank | -9/Exiles Scavenger-Skirmisher | -8/Mines Resources | -11 -10 -9 -9 -9 -8 ----------- Run | Yrd Mat Mat Min Exi Min Matter Collected 915 | 292 173 267 176 . 7 Remotely . | . . . . . . Salvage Created 1528 | 50 351 848 230 . 49 Parts 108 | 2 30 47 27 . 2 Haulers Intercepted 1 | . . 1 . . . Recyclers Shooed . | . . . . . . Parts Field Recycled . | . . . . . . Retrieved Matter . | . . . . . . Parts Self-Destructed . | . . . . . . Prevented . | . . . . . . Kills | -11 -10 -9 -9 -9 -8 ------- Run | Yrd Mat Mat Min Exi Min Combat Hostiles Destroyed 44 | 1 10 22 10 . 1 Guns 25 | 1 10 10 4 . . Cannons 17 | . . 10 6 . 1 AOE 2 | . . 2 . . . Classes Destroyed 9 | 1 3 4 . . 1 Worker 2 | . . 2 . . . Builder 1 | . 1 . . . . Hauler 1 | . . 1 . . . Watcher 4 | . 3 1 . . . Swarmer 22 | . 6 8 8 . . Grunt 16 | 1 4 11 . . . Duelist 1 | . . 1 . . . Sentry 4 | . . 2 2 . . Hunter 1 | . . . . . 1 Best Kill Streak 8 | 1 5 8 4 . 1 Combat Bots Only 6 | 1 3 6 4 . 1 Max Kills in Single Turn 2 | 1 2 2 2 . 1 Gunslinging 1 | . 1 . . . . Exploded 1 | . . 1 . . . Melee . | . . . . . . Uniques/NPCs Destroyed . | . . . . . . Combat | -11 -10 -9 -9 -9 -8 -------- Run | Yrd Mat Mat Min Exi Min Hostile Shots Fired 213 | 5 36 105 55 . 12 Missed 50 | 4 5 23 13 . 5 Damage Taken 1839 | 12 343 969 440 . 75 Core 415 | . 111 186 100 . 18 Absorbed by Shields . | . . . . . . Redirected to Shielding 75 | . 30 41 4 . . Core Remaining (%) 77 | 100 55 . . . . Volleys Fired 107 | 4 37 41 22 . 3 Largest 3 | 2 2 3 3 . 3 Hottest 152 | 60 80 152 113 . 136 Shots Fired 229 | 8 70 107 35 . 9 Gun 158 | 8 70 61 13 . 6 Cannon 71 | . . 46 22 . 3 Launcher . | . . . . . . Special . | . . . . . . Kinetic 98 | 4 31 50 10 . 3 Thermal 37 | . 6 11 17 . 3 Explosive . | . . . . . . Electromagnetic 94 | 4 33 46 8 . 3 Robot Hit Streak 11 | 4 8 7 11 . 4 Robot Miss Streak 5 | 2 4 5 1 . 1 Penetration Max . | . . . . . . Secondary Targets 1 | . 1 . . . . Max Gunslinging Chain 1 | . 1 . . . . Shots Hit Robots 134 | 5 37 60 24 . 8 Core Hits 72 | 2 20 37 10 . 3 Critical Kills . | . . . . . . Critical Parts Destroyed . | . . . . . . Critical Strikes . | . . . . . . Melee Attacks . | . . . . . . Impact . | . . . . . . Slashing . | . . . . . . Piercing . | . . . . . . Sneak Attacks . | . . . . . . Combat Hostiles . | . . . . . . Follow-up Attacks . | . . . . . . Damage Inflicted 2764 | 77 594 1444 528 . 121 Guns 1203 | 77 542 403 122 . 59 Cannons 1163 | . . 695 406 . 62 Explosions 385 | . 52 333 . . . Melee . | . . . . . . Ramming 13 | . . 13 . . . Kinetic 703 | 39 181 338 113 . 32 Thermal 844 | . 75 398 309 . 62 Explosive . | . . . . . . Electromagnetic 1204 | 38 338 695 106 . 27 Impact . | . . . . . . Slashing . | . . . . . . Piercing . | . . . . . . Highest Corruption . | . . . . . . Average Corruption . | . . . . . . Corruption Purged . | . . . . . . Corruption Blocked . | . . . . . . Overload Shots . | . . . . . . Overflow Damage 10 | . 6 4 . . . Projectiles 2 | . . 2 . . . Explosions 8 | . 6 2 . . . Melee . | . . . . . . Knockbacks . | . . . . . . Impact . | . . . . . . Kinetic . | . . . . . . Secondary . | . . . . . . Self-Inflicted Damage 114 | . 32 82 . . . Shots 3 | . 1 2 . . . Rammed . | . . . . . . Targets Rammed 5 | . . 5 . . . Kicked 5 | . . 5 . . . Crushed . | . . . . . . Highest Temperature 421 | 6 48 367 421 . 230 Average Temperature 115 | 6 11 108 170 . 134 Received Heat Transfer 438 | 6 78 282 72 . . Effects 8 | . . 6 2 . . Shutdowns 2 | . . 1 1 . . Interference 6 | . . 5 1 . . Siege Activations . | . . . . . . Robots Corrupted . | . . . . . . Combat Hostiles . | . . . . . . Parts Fried 4 | . 3 1 . . . Impact Corruptions . | . . . . . . Robots Melted . | . . . . . . Combat Hostiles . | . . . . . . Parts Melted 2 | . . 1 1 . . Heat Transferred 1366 | . 150 550 555 . 111 Parts Sabotaged . | . . . . . . Parts Stolen . | . . . . . . Parts Stripped . | . . . . . . Power Chain Reactions 5 | . 2 3 . . . Alert | -11 -10 -9 -9 -9 -8 ------- Run | Yrd Mat Mat Min Exi Min Peak Influence 675 | 20 404 675 457 . 30 Initial 262 | . 13 107 262 . . Average 270 | 12 176 371 361 . 4 Maximum Alert Level 2 | . 2 2 2 . . Low Security (%) 30 | 100 52 9 . . 100 Level 1 47 | . 39 49 82 . . Level 2 21 | . 7 41 17 . . Level 3 . | . . . . . . Level 4 . | . . . . . . Level 5 . | . . . . . . High Security . | . . . . . . Max Security . | . . . . . . Squads Dispatched 4 | . 2 2 . . . Investigation . | . . . . . . Extermination . | . . . . . . Reinforcement 4 | . 2 2 . . . Assault . | . . . . . . Garrison . | . . . . . . Intercept . | . . . . . . Searches Triggered . | . . . . . . Construction Impeded . | . . . . . . Haulers Reinforced . | . . . . . . Active Scanning Responses . | . . . . . . Cargo Convoy Interrupts . | . . . . . . Stealth | -11 -10 -9 -9 -9 -8 --------- Run | Yrd Mat Mat Min Exi Min Distress Signals . | . . . . . . Communications Jammed . | . . . . . . Distress Signals . | . . . . . . Times Spotted 57 | 1 16 29 10 . 1 Peak Tracking Total 6 | 1 4 6 4 . 1 Tactical Retreats 3 | . . 3 . . . Traps | -11 -10 -9 -9 -9 -8 ------- Run | Yrd Mat Mat Min Exi Min Traps Triggered 3 | . 3 . . . . Indirectly . | . . . . . . Trap Hack Attempts . | . . . . . . Triggered . | . . . . . . Disarmed . | . . . . . . Reprogrammed . | . . . . . . Reused . | . . . . . . Traps Extracted . | . . . . . . Installed . | . . . . . . Triggered . | . . . . . . Machines | -11 -10 -9 -9 -9 -8 ---------- Run | Yrd Mat Mat Min Exi Min Machines Disabled 7 | . 3 4 . . . Max in Single Turn 1 | . 1 1 . . . Machines Repaired . | . . . . . . Machines Dismantled . | . . . . . . Machines Sabotaged . | . . . . . . Overloaded Fab Kills . | . . . . . . Hacking | -11 -10 -9 -9 -9 -8 --------- Run | Yrd Mat Mat Min Exi Min Machines Accessed 1 | . 1 . . . . Terminals 1 | . 1 . . . . Fabricators . | . . . . . . Repair Stations . | . . . . . . Recycling Units . | . . . . . . Scanalyzers . | . . . . . . Garrison Access . | . . . . . . Total Hacks 1 | . 1 . . . . Successful 1 | . 1 . . . . Failed . | . . . . . . Catastrophic . | . . . . . . Database Lockouts . | . . . . . . Manual 1 | . . . . 1 . Terminals 1 | . 1 . . . . Fabricators . | . . . . . . Repair Stations . | . . . . . . Recycling Units . | . . . . . . Scanalyzers . | . . . . . . Garrison Access . | . . . . . . Terminal Hacks 1 | . 1 . . . . Alert Level 1 | . 1 . . . . Fabricator Hacks . | . . . . . . Repair Station Hacks . | . . . . . . Recycling Unit Hacks . | . . . . . . Scanalyzer . | . . . . . . Garrison Access Hacks . | . . . . . . Unauthorized Hacks . | . . . . . . Terminals . | . . . . . . Fabricators . | . . . . . . Repair Stations . | . . . . . . Recycling Units . | . . . . . . Scanalyzers . | . . . . . . Garrison Access . | . . . . . . Data Cores Recovered . | . . . . . . Used . | . . . . . . Hacking Detections . | . . . . . . Full Trace Events . | . . . . . . Feedback Events . | . . . . . . Feedback Blocked . | . . . . . . Robot Schematics Acquired . | . . . . . . Robots Built . | . . . . . . Authchips . | . . . . . . Time . | . . . . . . Total Robot Build Rating . | . . . . . . Part Schematics Acquired . | . . . . . . Parts Built . | . . . . . . Authchips . | . . . . . . Time . | . . . . . . Total Part Build Rating . | . . . . . . Parts Repaired . | . . . . . . Time . | . . . . . . Parts Recycled . | . . . . . . Recycled Matter . | . . . . . . Retrieved Matter . | . . . . . . Retrieved Components . | . . . . . . Parts Scanalyzed . | . . . . . . Part Schematics Acquired . | . . . . . . Parts Damaged . | . . . . . . Bothacking | -11 -10 -9 -9 -9 -8 ------------ Run | Yrd Mat Mat Min Exi Min Used RIF Installer . | . . . . . . Robots Hacked . | . . . . . . Non-combat . | . . . . . . Combat . | . . . . . . Robot Hacks Applied . | . . . . . . Relay Couplers Released . | . . . . . . Fabnet Peak Effective % . | . . . . . . Robots Rewired . | . . . . . . Allies Hacked . | . . . . . . Hacks Repelled . | . . . . . . Allies | -11 -10 -9 -9 -9 -8 -------- Run | Yrd Mat Mat Min Exi Min Total Allies . | . . . . . . Largest Group . | . . . . . . Highest-Rated Group . | . . . . . . Highest-Rated Ally . | . . . . . . Total Orders . | . . . . . . Ally Attacks . | . . . . . . Total Damage . | . . . . . . Kills . | . . . . . . Allies Corrupted . | . . . . . . Allies Melted . | . . . . . . Intel | -11 -10 -9 -9 -9 -8 ------- Run | Yrd Mat Mat Min Exi Min Robot Analysis Total . | . . . . . . Derelict Logs Recovered . | . . . . . . Drone Launches . | . . . . . . Drone Recoveries . | . . . . . . Exploration | -11 -10 -9 -9 -9 -8 ------------- Run | Yrd Mat Mat Min Exi Min Turns Passed 2246 | 150 544 727 393 360 72 Spaces Moved 1349 | 134 477 320 164 224 30 Core 22 | 19 . . 3 . . Treads 512 | . . 204 54 224 30 Legs 414 | 46 252 116 . . . Wheels 69 | 69 . . . . . Hover . | . . . . . . Flight 332 | . 225 . 107 . . Fastest Speed 37 | 50 37 120 117 160 160 Average Speed 125 | 89 83 145 185 160 160 Slowest Speed 300 | 120 120 160 300 160 160 Overloaded Moves . | . . . . . . Propulsion Burnouts . | . . . . . . Robots Hopped . | . . . . . . Cave-ins Triggered . | . . . . . . Exploration Rate (%) 30 | 8 63 30 28 41 13 Regions Visited 5 Branch Regions 3 Pre-discovered Areas . | . . . . . . Known Exits Taken 4 | . 1 1 1 1 . Unknown Exits Taken 1 | 1 . . . . . Scrap Searched 1 | . . . . . 1 Spaces Dug . | . . . . . . Terrain Destroyed 43 | . . 43 . . . Melee . | . . . . . . Projectile . | . . . . . . AOE 43 | . . 43 . . . Terrain Rammed . | . . . . . . Walls Destroyed . | . . . . . . Machines Disabled . | . . . . . . Actions | -11 -10 -9 -9 -9 -8 --------- Run | Yrd Mat Mat Min Exi Min Total 1705 | 157 555 496 224 226 47 Wait 123 | 1 12 93 4 . 13 Move 1344 | 133 476 319 163 223 30 Hop . | . . . . . . Pick Up 52 | 9 11 17 12 2 1 Fast Attach 1 | . . . 1 . . Attach 26 | 8 3 7 8 . . Detach . | . . . . . . Swap 20 | . 9 7 4 . . Drop 27 | 2 7 7 10 1 . Fire 107 | 4 37 41 22 . 3 Melee . | . . . . . . Ram . | . . . . . . Kick 5 | . . 5 . . . Crush . | . . . . . . Escape Stasis . | . . . . . . Rewire . | . . . . . . Trap . | . . . . . . Miscellaneous . | . . . . . . Route ------- -11/Scrapyard -10/Materials (discovered 2 exits: *Mat x2) -9/Materials (discovered 2 exits: *Min / *Sto) -9/Mines (discovered 2 exits: *Mat / *Exi) -9/Exiles -8/Mines History --------- Turn | Location | Event 2 | -11/Scrapyard | Met Revision 17 46 | -11/Scrapyard | Discovered new exit (range 8) 151 | -11/Scrapyard | Entered Materials 302 | -10/Materials | Build established: Mutant 352 | -10/Materials | Discovered new exit (range 4) 516 | -10/Materials | Discovered new exit (range 14) 538 | -10/Materials | Identified exit to Materials 695 | -10/Materials | Entered another Materials area 695 | -9/Materials | Evolved 2 slots: Power x1, Weapon x1 695 | -9/Materials | Discovered new exit (range 8) 782 | -9/Materials | Identified exit to Storage 986 | -9/Materials | Lost 3 parts (1p2w) 1276 | -9/Materials | Build established: Scavenger-Tank 1362 | -9/Materials | Discovered new exit (range 12) 1400 | -9/Materials | Identified exit to Mines 1422 | -9/Materials | Entered Mines 1431 | -9/Mines | Core integrity fell below 50% 1561 | -9/Mines | Deemed a non-threat by the Exiles lab entrance 1563 | -9/Mines | Discovered new exit (range 5) 1569 | -9/Mines | Identified exit to Exiles 1626 | -9/Mines | Discovered new exit (range 6) 1638 | -9/Mines | Identified exit to Materials 1740 | -9/Mines | Build established: Scavenger-Mutant 1815 | -9/Mines | Entered Exiles 1836 | -9/Exiles | Discovered new exit (range 15) 1854 | -9/Exiles | Met 8R-AWN 1881 | -9/Exiles | Met EX-HEX 1926 | -9/Exiles | Met EX-BIN 1945 | -9/Exiles | Aligned with FarCom system 1947 | -9/Exiles | Given EX-Vault access code 1991 | -9/Exiles | Opened EX-Vault 1998 | -9/Exiles | Found Prototype Energy Cannon 2014 | -9/Exiles | Found Prototype Processor 2044 | -9/Exiles | Build established: Scavenger-Tank 2050 | -9/Exiles | Warned to stay clear of 0b10 Research branches 2173 | -9/Exiles | Identified exit to Mines 2175 | -9/Exiles | Stole two prototypes: 0b10 Alert Chip, Latent Energy Streamer 2175 | -9/Exiles | Entered Mines 2247 | -8/Mines | Self-destructed Last Messages --------------- something like 1234 which I did last time as a little joke and some thief managed to sneak in here and steal a few of HEX's prototypes. EXIT=IDENTIFIED: MINES LOCATION=MINES GOAL=ESCAPE Receiving FarCom transmissions... Searching scrap... Found Sml. Laser. Found Flak Cannon. Found Recoil Stabilizer. Found 10 Matter. K-01 Serf collects debris. Acquired Recoil Stabilizer. K-01 Serf collects debris. Slug penetrates Wall. K-01 Serf collects debris. Lgt. Ion Engine destroyed. H-55 Commando destroyed. Acquired 7 matter. Map ----- +----------------------------------------------------+ | | | | | | | | | | | | | | | | | ???????????????????????????????????????????????? | | ???????????????????????????????????????????????? | | ???????????????????????????????????????????????? | | ???????????????????????????????????????????????? | | ???????????????????????????????????????????????? | | ?????????????????????????????##????????????????? | | ???????????????????????????? ????????????????? | | ???????????????????????????? ????????????????? | | ???????????????????????????? #????????????????? | | ???????????????????????????? #????????????????? | | ???????????????????????????? ##???????????????? | | ???????????????????????????? #???????????????? | | ???????????????????????????? ##??????????????? | | ??????????????????????????## ##?????????????? | | ?????????????# ??####?#### ##????????????? | | ?????????????# ## ## #????????????? | | ?????????????# #????????????? | | ????????????# [@! #????????????? | | ?????????? """ #?????????????? | | ????????????? """ # #####?????????????? | | ????????????????# """ ## #?????????????????? | | ????????????????# ##[]#?########????????? | | ????????????????# % ### ##???????? | | ????????????????# ## ## #???????? | | ????????????????## #### ## #???????? | | ?????????????????## ##???# #?# #????????? | | ??????????????????###?????# ### #?????????? | | ??????????????????????????# #??????????? | | ??????????????????????????# #??????????? | | ??????????????????????????###### #?????????? | | ???????????????????????????????# #????????? | | ???????????????????????????????## #????????? | | ????????????????????????????????# ##????????? | | ????????????????????????????????## ##?????????? | | ?????????????????????????????????####??????????? | | ???????????????????????????????????????????????? | | ???????????????????????????????????????????????? | | ???????????????????????????????????????????????? | | ???????????????????????????????????????????????? | | ???????????????????????????????????????????????? | | ???????????????????????????????????????????????? | | ???????????????????????????????????????????????? | +----------------------------------------------------+ Best States ------------- Heat Dissipation 35 Energy Generation 15 Energy Capacity 150 Matter Stores 300 Matter Capacity 300 Sight Range 16 Terrain Scan Density 10 Armor Coverage 225 Core Shielding 20 Weapon Shielding 33 Evasion (%) 62 Recoil Reduction 2 Item Schematics ----------------- None Robot Schematics ------------------ None Fabricated ------------ Nothing Alien Tech Used ----------------- None Achievements -------------- None Challenges ------------ None Game ------ Seed CargoDeepMediator Manual? 0 Play Time 01:17:37 Cumulative 3.5 hours Start 2024.04.08 @ 16:46:57 End 2024.04.09 @ 05:45:33 Sessions 1 Manual Loads 0 Difficulty Rogue Special Mode None Game No. 3 Rogue 3 Adventurer 0 Explorer 0 Win Type - Total 0 Types 0/0/0/0/0/0/0/0/0 Lore% 1 Gallery% 4 Achievement% 7 Wizard Run 0 Options --------- Layout 1 ASCII 0 Keyboard 0 Movement Mouse Keybinds 0 Fullscreen 2 Font 24/Tallcaps Map View 50x35 Zoom Use 0% Tactical HUD 0 Map Filters NONE Filters NONE Steam 1 RUN: 089c2a08-dd11-4b65-bfba-77ee48d3e0c1